[Event "Superbet Rapid Poland 2022"]
[Site "Warsaw"]
[Date "2022.05.19"]
[Round "3.3"]
[White "Aronian, Levon"]
[Black "Wojtaszek, Radoslaw"]
[Result "1/2-1/2"]
[ECO "B30"]
[WhiteElo "2765"]
[BlackElo "2696"]
[Annotator "TA"]
[PlyCount "143"]
[EventDate "2022.05.19"]
[EventType "tourn"]
[EventCountry "POL"]
[SourceTitle "playchess.com"]
[Source "ChessBase"]
[SourceQuality "1"]
[TimeControl "1500+10"]

{[%evp 13,143,0,0,-13,0,-6,0,0,0,-11,-8,-2,3,-17,0,0,0,0,0,0,14,-43,-45,-24,-19,-35,-30,-47,0,0,29,35,59,34,38,0,6,-36,-29,-43,-40,-235,-235,-286,-272,-641,-631,-569,-497,-487,-473,-471,-318,-328,-282,-322,-322,-402,-408,-393,-375,-572,-485,-521,-115,-111,-110,-91,-91,-91,-79,-97,0,-60,0,-75,0,-65,-54,-54,-55,-74,-65,-97,-98,-94,-99,-125,-120,-95,-112,-104,-87,-87,-87,-87,-87,-87,-63,-70,-10,-9,-10,-88,-21,-14,-11,-255,-253,-241,-253,-179,-8,-8,-8,-8,-8,-8,-8,-8,-8,-8,-8,-8,-8,-8,8,8,8,8,8,8]} 1. e4 {[%emt 0:00:02]} c5 {[%emt 0:00:01]} 2. Nf3 {[%emt 0:00:02]} d6 {[%emt 0:00:01]} 3. Bc4 {[%emt 0:00:02]} Nf6 {[%emt 0:00:07]} 4. d3 {[%emt 0:00:02]} Nc6 {[%emt 0:00:09]} 5. O-O {[%emt 0:00:07]} g6 {[%emt 0:00:06]} 6. h3 {[%emt 0:00:11]} Bg7 {[%emt 0:00:04]} 7. Nc3 {[%emt 0:00:03]} O-O {[%emt 0:00:13]} 8. a3 {[%emt 0:00:05] B30: Sicilian: 2...Nc6 3 Bb5, lines without ...g6.} b6 {[%emt 0:00:27]} 9. Be3 {[%emt 0:00:03]} Bb7 {[%emt 0:00:10]} 10. Ba2 {[%emt 0:00:04] [#]} e6 $146 {[%emt 0:00:05]} ({Predecessor:} 10... h6 11. Nh2 e5 12. Nd5 Nd4 13. Nxf6+ Qxf6 14. Qd2 Kh7 15. f4 exf4 16. Rxf4 Qe7 {1-0 (52) Hansen,S (2555)-Bekker Jensen,S (2393) Aalborg 2006}) 11. Qc1 {[%emt 0:00:30]} Rc8 {[%emt 0:02:46]} 12. Re1 {[%emt 0:00:17]} Ne5 {[%emt 0:01:31]} 13. Nh2 {[%emt 0:00:35]} a6 {[%emt 0:01:34]} 14. Bh6 {[%emt 0:00:36]} Re8 {[%emt 0:00:20]} 15. Bxg7 {[%emt 0:00:21]} Kxg7 {[%emt 0:00:02]} 16. f4 {[%emt 0:00:01]} Nc6 {[%emt 0:00:29]} 17. Rf1 {[%emt 0:00:19]} (17. Nf3 $11) 17... Nd4 $15 {[%emt 0:00:31]} 18. Qd2 {[%emt 0:00:01]} d5 {[%emt 0:01:30][%cal Rd5e4]} 19. e5 {[%emt 0:00:08]} Nd7 {[%emt 0:00:18]} 20. Rae1 {[%emt 0:02:32]} f5 {[%emt 0:05:17]} (20... b5 $15) 21. exf6+ $11 {[%emt 0:00:53]} Nxf6 {[%emt 0:00:07]} 22. Ne2 {[%emt 0:00:34] Black must now prevent Nxd4.} Nc6 {[%emt 0:01:31]} 23. Nf3 {[%emt 0:00:49]} Qd6 {[%emt 0:00:03]} 24. d4 {[%emt 0:02:01]} a5 {[%emt 0:00:43]} 25. Ng3 {[%emt 0:02:50]} (25. c3 {is more complex.} Ba6 26. Bb1 Ne4 27. Bxe4 dxe4 28. Ng5) 25... Nxd4 {[%emt 0:01:04]} 26. Nxd4 {[%emt 0:01:01]} cxd4 {[%emt 0:00:02]} 27. Ne2 $2 {[%emt 0:01:11]} ({White should try} 27. Qxd4 $15 Qc5 28. c3) 27... Ba6 $19 {[%emt 0:00:17]} 28. Rf3 {[%emt 0:00:01]} e5 {[%emt 0:01:28][%cal Be6e5,Be5e4,Be4e3][%mdl 32]} 29. Nc1 $2 {[%emt 0:02:54]} (29. fxe5 Qxe5 30. Bb3) 29... e4 {[%emt 0:00:28]} 30. Rg3 {[%emt 0:00:01]} e3 {[%emt 0:01:51]} 31. Qxd4 {[%emt 0:00:10]} Re4 {[%emt 0:00:01]} 32. Qd1 {[%emt 0:00:01]} Qxf4 {[%emt 0:00:10]} 33. Rf3 {[%emt 0:00:05]} Qg5 {[%emt 0:00:47]} 34. Ne2 {[%emt 0:00:25]} Bxe2 {[%emt 0:01:04]} 35. Rxe2 {[%emt 0:01:29]} d4 {[%emt 0:00:22]} 36. Qd3 {[%emt 0:00:58][%cal Of3f6] aiming for Rxf6!} Rf4 {[%emt 0:00:53]} 37. Qa6 {[%emt 0:00:08]} (37. Rxf4 $142 Qxf4 38. c3) 37... Rxf3 {[%emt 0:02:32]} 38. Qxc8 {[%emt 0:00:15] Qb7+ is the strong threat.} Rf2 $2 {[%emt 0:00:16]} (38... Rf4 $19 {and Black stays clearly on top.} 39. Qd8 Qe5) 39. Rxf2 $17 {[%emt 0:00:23]} exf2+ {[%emt 0:00:02]} 40. Kxf2 {[%emt 0:00:00][%mdl 4096] Endgame KQB-KQN} Qe3+ {[%emt 0:01:18]} (40... Kh6 $6 41. Qf8+ Kh5 42. Qe7 $11) 41. Kf1 {[%emt 0:00:02]} Qc1+ {[%emt 0:00:59]} 42. Ke2 {[%emt 0:00:02]} Qe3+ {[%emt 0:00:05]} (42... Qxb2 $6 43. Qc7+ Kh6 44. Qf4+ Kg7 45. Qc7+ Kh6 46. Qf4+ Kg7 47. Qc7+ $11) 43. Kf1 {[%emt 0:00:03]} Qc1+ {[%emt 0:00:22]} 44. Ke2 $1 {[%emt 0:00:02]} Qe3+ {[%emt 0:00:05]} ({Much weaker is} 44... Qxb2 45. Qc7+ Kh6 46. Qf4+ Kg7 47. Qc7+ Kh6 48. Qf4+ Kg7 49. Qc7+ $11) 45. Kf1 {[%emt 0:00:02]} d3 {[%emt 0:00:09]} 46. cxd3 {[%emt 0:00:46]} Qxd3+ {[%emt 0:00:01]} 47. Kg1 {[%emt 0:00:07]} Qd4+ {[%emt 0:00:04]} 48. Kh1 {[%emt 0:00:01]} Qxb2 {[%emt 0:00:19]} 49. Qc7+ {[%emt 0:00:23]} Kh6 {[%emt 0:00:01]} 50. Qf4+ {[%emt 0:00:01]} g5 {[%emt 0:00:05]} 51. Qf1 {[%emt 0:00:01][%cal Oa3a4]} Qe5 {[%emt 0:00:22]} ({Much worse is} 51... Qxa2 $6 52. Qxf6+ Kh5 53. Kh2 $11) 52. Bb1 {[%emt 0:01:27]} b5 {[%emt 0:00:07]} 53. Bd3 {[%emt 0:00:20]} b4 {[%emt 0:00:02]} 54. axb4 {[%emt 0:00:01]} axb4 {[%emt 0:00:01]} 55. Bc2 {[%emt 0:00:00]} Qf4 {[%emt 0:00:25]} (55... g4 {with more complications.} 56. hxg4 Nxg4 57. Qf8+ Kg5) 56. Qe1 {[%emt 0:00:27]} g4 {[%emt 0:00:15]} (56... Nh5 $15) 57. hxg4 $11 {[%emt 0:00:17]} Qxg4 {[%emt 0:00:18]} 58. Kg1 {[%emt 0:01:37] [#]} ({Of course not} 58. Qe3+ Qg5 59. Qe6 Qf4 $17) (58. Qf2 $11 {remains equal.} Qg5 59. g3) 58... Qf4 {[%emt 0:00:02]} ({Black should play} 58... Qd4+ $1 $17 59. Kf1 Qf4+ 60. Kg1 Qg5) 59. g3 {[%emt 0:00:25]} Qd4+ {[%emt 0:00:07]} 60. Kh2 $2 {[%emt 0:01:20] [#]} (60. Kf1 $11) 60... Ng4+ $1 $19 {[%emt 0:00:07]} 61. Kh3 {[%emt 0:00:03]} Ne3 {[%emt 0:00:07] Strongly threatening ...Qc3.} 62. Qe2 {[%emt 0:00:06]} Kg5 $2 {[%emt 0:00:16]} (62... Nxc2 $19 63. Qxc2 Qd5) 63. Qb5+ $11 {[%emt 0:00:05] The position is equal.} Qd5 {[%emt 0:00:29]} 64. Qxd5+ Nxd5 {[%emt 0:00:01]} 65. Bxh7 {[%emt 0:00:04] KB-KN} b3 {[%emt 0:00:03]} 66. Kg2 {[%emt 0:00:02]} b2 {[%emt 0:00:03] ( -> ...Ne3+)} 67. Kf2 $1 {[%emt 0:00:02] Against Ne3} Nf6 {[%emt 0:00:04]} 68. Bc2 {[%emt 0:00:03]} Nh5 {[%emt 0:00:01]} 69. Kf3 {[%emt 0:00:07]} Nxg3 {[%emt 0:00:04]} 70. Kxg3 {[%emt 0:00:01]} Kf6 {[%emt 0:00:02]} 71. Kf4 {[%emt 0:00:01]} b1=Q {[%emt 0:00:02]} 72. Bxb1 {[%emt 0:00:02] Weighted Error Value: White=0.39/Black=0.35} 1/2-1/2

[Event "Superbet Rapid Poland 2022"]
[Site "Warsaw"]
[Date "2022.05.19"]
[Round "3.4"]
[White "Duda, Jan-Krzysztof"]
[Black "Rapport, Richard"]
[Result "1-0"]
[ECO "E98"]
[WhiteElo "2750"]
[BlackElo "2776"]
[Annotator "TA"]
[PlyCount "91"]
[EventDate "2022.05.19"]
[EventType "tourn"]
[EventCountry "POL"]
[SourceTitle "playchess.com"]
[Source "ChessBase"]
[SourceQuality "1"]
[TimeControl "1500+10"]

{[%evp 21,91,-13,60,58,51,6,62,46,46,45,45,13,25,17,58,36,51,18,23,27,20,36,45,35,89,91,140,135,279,228,322,278,262,261,318,313,295,241,393,392,459,468,482,461,468,240,655,627,803,854,1016,958,1026,1014,1439,1440,1425,1360,1646,1674,1502,1186,1911,1800,1503,925,959,985,992,985,943,901]} 1. d4 {[%emt 0:00:00]} Nf6 {[%emt 0:00:05]} 2. c4 {[%emt 0:00:02]} g6 {[%emt 0:00:01]} 3. Nc3 {[%emt 0:01:24]} Bg7 {[%emt 0:00:03]} 4. e4 {[%emt 0:00:02]} d6 {[%emt 0:00:01]} 5. Nf3 {[%emt 0:00:05][%cal Bg1f3,Bf3e1,Be1d3][%mdl 32]} O-O {[%emt 0:00:03]} 6. Be2 {[%emt 0:00:03]} e5 {[%emt 0:00:02]} 7. O-O {[%emt 0:00:08]} Nc6 {[%emt 0:00:10]} 8. d5 {[%emt 0:00:04]} Ne7 {[%emt 0:00:02]} 9. Ne1 {[%emt 0:00:42]} Ne8 {[%emt 0:00:02]} 10. Nd3 {[%emt 0:00:14]} f5 {[%emt 0:00:02]} 11. Bd2 {[%emt 0:00:13] 11.f3 injects fresh life into this line.} f4 {[%emt 0:00:23] [#]} (11... fxe4 $1 $11 12. Nxe4 Nf6 13. Nxf6+ Bxf6) 12. b4 $146 {[%emt 0:01:27] E98: King's Indian: Classical Main Line: 9 Ne1.} ({Predecessor:} 12. c5 g5 13. Rc1 Rf6 14. Bg4 Bxg4 15. Qxg4 Rg6 16. h3 Qc8 17. Qxc8 Rxc8 18. Nb5 a6 19. cxd6 axb5 20. dxe7 {1-0 (40) Batsiashvili,N (2491)-Ovezdurdiyeva,J (2061) Chess.com INT 2022}) 12... g5 {[%emt 0:00:05]} 13. c5 {[%emt 0:01:39]} Ng6 {[%emt 0:00:04]} (13... c6 $11) 14. Rc1 {[%emt 0:00:30] White is slightly better.} Nf6 {[%emt 0:00:07]} 15. f3 {[%emt 0:00:02]} Rf7 {[%emt 0:00:13]} 16. Kh1 {[%emt 0:02:05]} h5 {[%emt 0:00:37]} 17. g3 {[%emt 0:00:27]} Kh7 {[%emt 0:03:32]} 18. Nf2 {[%emt 0:02:13]} Bf8 {[%emt 0:01:37]} 19. c6 {[%emt 0:01:59]} b6 {[%emt 0:00:59]} 20. Rg1 {[%emt 0:00:06]} Bh6 {[%emt 0:00:28]} 21. a4 {[%emt 0:01:07]} fxg3 {[%emt 0:01:18]} 22. hxg3 {[%emt 0:00:15]} g4 {[%emt 0:02:20]} (22... Qf8 $14) 23. fxg4 $16 {[%emt 0:02:30][%cal Bf3g4,Bg4g5][%mdl 32] White is more active.} Bxd2 {[%emt 0:02:05]} (23... Nxg4 $142 24. Nxg4 Bxg4) 24. Qxd2 {[%emt 0:00:02]} h4 {[%emt 0:00:38] This move loses the game for Black.} (24... Bxg4 $16 {is a better defense.} 25. Rcf1 (25. Nxg4 Nxg4 26. Bxg4 hxg4 $16) 25... Bxe2 26. Qxe2 (26. Nxe2 Qf8 $11) 26... Qc8) 25. g5 $18 {[%emt 0:03:24]} Ne8 {[%emt 0:02:26]} (25... Ng8 $142) 26. Rcf1 {[%emt 0:01:14][%cal Bc1f1,Bf1f7,Bf7c7][%mdl 32] Hoping for gxh4.} (26. Bh5 Ng7 27. Bxg6+ Kxg6 $16) 26... hxg3 {[%emt 0:01:14]} 27. Rxg3 {[%emt 0:00:03]} Rf4 {[%emt 0:00:04]} 28. Nd3 {[%emt 0:00:32] Really sharp!} Rh4+ {[%emt 0:00:27]} 29. Kg1 {[%emt 0:00:10]} Ng7 $2 {[%emt 0:00:11]} (29... Kg8 {was worth a try.} 30. Rf2 Qe7) 30. Rf7 {[%emt 0:01:11]} Qh8 {[%emt 0:00:03]} 31. Rxc7 {[%emt 0:02:05]} Kg8 {[%emt 0:00:14] [#]} 32. Nf2 {[%emt 0:00:09] Against Rh1+. Threatens to win with Nb5.} Nf4 {[%emt 0:00:22]} 33. Nb5 {[%emt 0:00:42]} (33. g6 $142) 33... Rh2 $2 {[%emt 0:02:06]} (33... Ngh5 34. Rf3 (34. Bxh5 Qxh5 35. Nc3 Nh3+ 36. Nxh3 Bxh3 $18) 34... Nxe2+ 35. Qxe2 Nf4) 34. Qe3 {[%emt 0:00:11] White is clearly winning.} ({But not} 34. Nxd6 $2 {[#]} Qh4 $1 35. Qxf4 (35. Rxc8+ $2 Rxc8 36. Qxf4 exf4 $19) (35. Rxg7+ $2 Kxg7 36. Qxf4 exf4 $19) 35... exf4 $19) 34... Qh4 {[%emt 0:00:50]} 35. Bd1 {[%emt 0:01:01]} Ngh5 {[%emt 0:01:45] [#]} 36. Rxc8+ $1 {[%emt 0:01:01]} Rxc8 {[%emt 0:00:02]} 37. Rg4 {[%emt 0:00:01]} Rxf2 {[%emt 0:04:58]} 38. Rxh4 {[%emt 0:00:14][%mdl 64] Discovered Attack} Rg2+ {[%emt 0:00:02]} 39. Kf1 {[%emt 0:00:23]} Ng3+ {[%emt 0:00:26]} 40. Ke1 {[%emt 0:00:08]} Rf8 {[%emt 0:00:01]} 41. Nxd6 {[%emt 0:01:01]} Ng6 {[%emt 0:01:31]} 42. Nf5 {[%emt 0:00:55]} Nxh4 {[%emt 0:00:01]} 43. Qxg3 {[%emt 0:00:16]} Rxg3 {[%emt 0:00:23]} 44. Nxg3 {[%emt 0:00:02]} Kf7 {[%emt 0:00:05]} 45. Bg4 {[%emt 0:00:02] aiming for c7.} Ke7 {[%emt 0:00:10]} 46. c7 {[%emt 0:00:03] Weighted Error Value: White=0.22 (precise) /Black=0.51} 1-0

[Event "Superbet Rapid Poland 2022"]
[Site "Warsaw"]
[Date "2022.05.19"]
[Round "3.5"]
[White "Gavrilescu, David"]
[Black "Caruana, Fabiano"]
[Result "0-1"]
[ECO "B30"]
[WhiteElo "2518"]
[BlackElo "2786"]
[Annotator "TA"]
[PlyCount "96"]
[EventDate "2022.05.19"]
[EventType "tourn"]
[EventCountry "POL"]
[SourceTitle "playchess.com"]
[Source "ChessBase"]
[SourceQuality "1"]
[TimeControl "1500+10"]

{[%evp 9,96,13,19,-1,58,54,35,33,60,15,16,21,59,59,56,58,81,63,74,70,94,84,104,94,83,97,97,99,99,62,43,0,56,0,12,0,8,-48,-48,-51,-75,-60,-43,-106,-110,-97,-111,-112,-116,-104,-110,-104,-109,-180,-168,-183,-160,-231,-120,-116,-106,-111,-113,-343,-334,-342,-335,-572,-565,-525,-501,-459,-313,-1691,-1470,-1895,-1762,-2001,-1744,-12836,-12836,-12837,-12837,-12838,-12839,-12839,-12839,-29992,-29993]} 1. e4 {[%emt 0:00:05] Krasenkow,Michal} c5 {[%emt 0:00:02]} 2. Nf3 {[%emt 0:00:06]} Nc6 {[%emt 0:00:02]} 3. Bb5 {[%emt 0:00:09]} e6 {[%emt 0:00:02]} 4. Bxc6 {[%emt 0:01:32]} bxc6 {[%emt 0:00:02]} 5. d3 {[%emt 0:00:04]} Ne7 {[%emt 0:00:27]} 6. Nbd2 {[%emt 0:00:56] B30: Sicilian: 2...Nc6 3 Bb5, lines without ...g6.} Ng6 {[%emt 0:01:30]} ({Black should play} 6... d5 $11) 7. h4 $1 $14 {[%emt 0:01:23]} h5 {[%emt 0:00:05]} 8. e5 $1 {[%emt 0:00:24] White is slightly better.} d6 {[%emt 0:01:30] [#]} 9. Qe2 $146 {[%emt 0:02:38]} ({Predecessor:} 9. exd6 e5 10. Nc4 Bg4 11. Bg5 f6 12. Bd2 Bxd6 13. Qe2 Bc7 14. O-O-O O-O 15. Kb1 {0-1 (38) Giri,A (2776)-Nepomniachtchi,I (2789) chess24.com INT 2021 CBM 201a [Krasenkow,Michal]}) 9... d5 $1 {[%emt 0:01:46]} 10. g3 {[%emt 0:01:47]} c4 {[%emt 0:02:42]} 11. dxc4 {[%emt 0:02:51]} Ba6 {[%emt 0:00:02]} 12. O-O {[%emt 0:01:52]} Ne7 {[%emt 0:00:03]} 13. b3 {[%emt 0:00:35]} Nf5 {[%emt 0:00:03]} 14. Rd1 {[%emt 0:02:04]} Qb6 {[%emt 0:00:40]} 15. Nf1 {[%emt 0:00:56]} Bc5 {[%emt 0:00:02]} 16. Ne3 {[%emt 0:00:11] Strongly threatening Nxf5.} Nd4 {[%emt 0:03:53]} 17. Nxd4 {[%emt 0:00:11]} Bxd4 {[%emt 0:00:02]} 18. Rb1 {[%emt 0:01:13]} O-O-O {[%emt 0:00:53]} 19. Bd2 {[%emt 0:02:49]} Bxe5 {[%emt 0:01:10]} 20. Ng2 {[%emt 0:02:28]} (20. Nxd5 Rxd5 21. Qe4 Bxg3 $1 $17) 20... Bc7 {[%emt 0:00:40]} ({Black should try} 20... Bxg3 $11 21. Bg5 Bb8) 21. Bf4 {[%emt 0:00:25]} c5 {[%emt 0:01:03]} 22. Bxc7 {[%emt 0:02:03]} Qxc7 {[%emt 0:00:02]} 23. Qf3 {[%emt 0:00:35]} (23. b4 $11) 23... d4 $1 $15 {[%emt 0:01:01]} 24. Qa8+ {[%emt 0:00:12]} Kd7 {[%emt 0:00:01][%cal Bc8d7,Bd7e7,Be7f8,Bf8f7][%mdl 32]} 25. Qf3 {[%emt 0:00:03]} Ke7 {[%emt 0:01:18]} 26. Qf4 {[%emt 0:01:01] [#]} ({Better is} 26. Qe2 $15) 26... e5 $1 $17 {[%emt 0:00:48]} 27. Qg5+ {[%emt 0:00:27]} Kf8 {[%emt 0:00:02]} 28. b4 {[%emt 0:00:04]} f6 {[%emt 0:00:42]} 29. Qf5 {[%emt 0:00:07]} Kf7 {[%emt 0:01:36]} 30. bxc5 {[%emt 0:00:09][%cal Oc2c3]} Bxc4 {[%emt 0:00:25][%cal Ba6c4,Bc4d5,Bd5a8][%mdl 32]} 31. Qf3 {[%emt 0:00:32]} (31. c3 $17 {was necessary.} d3 32. Rb4) 31... Bd5 $19 {[%emt 0:02:47]} ({Inferior is} 31... Qxc5 32. Rb7+ Kf8 33. Qf5 $17) 32. Qa3 {[%emt 0:00:02]} Ba8 {[%emt 0:00:32]} 33. Ne1 {[%emt 0:00:30]} (33. Rd3 $17 {might work better.}) 33... Rd7 {[%emt 0:00:37]} (33... g5 $19 {And now ...gxh4 would win.} 34. hxg5 h4) 34. c3 $17 {[%emt 0:00:11]} Qc6 $40 {[%emt 0:01:04][%csl Ga8][%cal Rc6h1][%mdl 128] Black has strong attack. Black is more active.} 35. f3 {[%emt 0:00:01]} d3 {[%emt 0:00:02]} 36. Rb2 {[%emt 0:00:16] This costs White the game.} ({Don't go for} 36. Nxd3 $2 Rhd8 37. c4 (37. Qb3+ $2 Ke7 $19) 37... Qxf3 38. Nxe5+ fxe5 $19) (36. Rxd3 $17 {only move.} Rxd3 37. Nxd3) 36... e4 $19 {[%emt 0:00:25][%cal Be5e4,Be4f3][%mdl 32]} 37. Qb3+ {[%emt 0:00:12]} Kg6 {[%emt 0:00:10]} 38. Qc4 {[%emt 0:00:04]} (38. fxe4 Qxc5+ 39. Rf2 Bxe4 40. Qa4) 38... Re8 {[%emt 0:00:20]} 39. Ng2 {[%emt 0:00:17]} exf3 {[%emt 0:00:47]} 40. Nf4+ {[%emt 0:00:01]} Kh6 {[%emt 0:00:02][%cal Oe8e2] ( -> ...Re2!)} 41. Rf2 {[%emt 0:00:04] Inhibits Re2.} (41. Rxd3 f2+ 42. Kxf2) 41... d2 {[%emt 0:00:17] White must now prevent ...Re1+.} 42. Kh2 {[%emt 0:00:05]} g5 {[%emt 0:00:54]} 43. hxg5+ {[%emt 0:00:08]} fxg5 {[%emt 0:00:01] aiming for ...Re1.} 44. Rfxd2 {[%emt 0:00:03]} Rxd2+ {[%emt 0:01:12]} 45. Rxd2 {[%emt 0:00:01]} f2 {[%emt 0:00:01][%csl Ga8][%cal Rc6h1]} ({And not} 45... Re4 46. Qf7 gxf4 47. Rd6+ Qxd6 48. cxd6 $11) 46. Rd6+ {[%emt 0:00:16] [#]} Qxd6 $3 {[%emt 0:00:02][%mdl 512]} 47. cxd6 {[%emt 0:00:01] [#]} Re1 $1 {[%emt 0:00:03][%csl Ga8][%cal Re1h1]} 48. Nd5 {[%emt 0:00:47]} Bxd5 {[%emt 0:00:12] Weighted Error Value: White=0.88/Black=0.13 (very precise)} 0-1

[Event "Superbet Rapid Poland 2022"]
[Site "Warsaw"]
[Date "2022.05.20"]
[Round "4.1"]
[White "Korobov, Anton"]
[Black "Caruana, Fabiano"]
[Result "1/2-1/2"]
[ECO "A26"]
[WhiteElo "2671"]
[BlackElo "2786"]
[Annotator "TA"]
[PlyCount "66"]
[EventDate "2022.05.19"]
[EventType "tourn"]
[EventCountry "POL"]
[SourceTitle "playchess.com"]
[Source "ChessBase"]
[SourceQuality "1"]
[TimeControl "1500+10"]

{[%evp 20,66,29,27,18,20,18,19,24,15,15,18,13,6,17,11,6,8,11,0,5,0,0,0,0,0,0,0,0,0,0,0,0,0,0,0,0,0,0,0,0,0,0,0,0,0,0,0,0]} 1. c4 {[%emt 0:00:02]} e5 {[%emt 0:00:04]} 2. Nc3 {[%emt 0:00:07]} Nf6 {[%emt 0:00:09]} 3. Nf3 {[%emt 0:00:03]} Nc6 {[%emt 0:00:02]} 4. a3 {[%emt 0:00:03]} g6 {[%emt 0:00:33]} 5. g3 {[%emt 0:00:04]} Bg7 {[%emt 0:00:02]} 6. Bg2 {[%emt 0:00:01]} O-O {[%emt 0:00:04]} 7. O-O {[%emt 0:00:05]} d6 {[%emt 0:00:33]} 8. d3 {[%emt 0:00:03]} a5 {[%emt 0:00:07]} 9. Rb1 {[%emt 0:00:21]} h6 {[%emt 0:00:07] 9...Re8 is the modern continuation.} 10. b4 {[%emt 0:00:20]} axb4 {[%emt 0:00:02]} 11. axb4 {[%emt 0:00:02]} Ne7 {[%emt 0:00:31] A26: English Opening vs King's Indian with ...Nc6 and d3.} 12. Bb2 {[%emt 0:02:57]} Be6 {[%emt 0:00:32]} 13. Ra1 {[%emt 0:00:29]} Qd7 {[%emt 0:00:21]} 14. Qc2 {[%emt 0:02:52]} Bh3 {[%emt 0:01:02] The position is equal.} 15. Rxa8 {[%emt 0:00:12]} Rxa8 {[%emt 0:00:01]} 16. Ra1 {[%emt 0:00:02]} Rxa1+ {[%emt 0:00:50]} 17. Bxa1 {[%emt 0:00:02]} Bxg2 {[%emt 0:01:40]} 18. Kxg2 {[%emt 0:00:03] [#]} g5 $146 {[%emt 0:01:10][%cal Bg6g5,Bg5g4][%mdl 32]} ({Predecessor:} 18... Nf5 19. Qa2 c6 20. c5 Nd4 21. cxd6 Nxf3 22. Kxf3 Bf8 23. Qa8 Kg7 24. Qa5 Bxd6 {0-1 (54) MacMillen,A (1711)-Lorenz,B ICCF email 2017}) 19. Qa2 {[%emt 0:01:08]} c6 {[%emt 0:01:33]} 20. c5 {[%emt 0:02:18]} g4 {[%emt 0:04:54]} 21. Nh4 {[%emt 0:00:03]} d5 {[%emt 0:00:09]} 22. Qa8+ {[%emt 0:02:16]} Kh7 {[%emt 0:00:44]} 23. Na4 {[%emt 0:00:56][%cal Bc3a4,Ba4b6,Bb6c8][%mdl 32]} e4 {[%emt 0:05:54]} 24. Nb6 {[%emt 0:00:36]} Qe6 {[%emt 0:00:01]} 25. Qxb7 {[%emt 0:00:19]} exd3 {[%emt 0:00:17]} 26. exd3 {[%emt 0:00:03]} Qe2 {[%emt 0:00:36] [#] Strongly threatening ...d4.} 27. Nc8 {[%emt 0:06:50]} Ng6 {[%emt 0:02:18]} 28. Bxf6 {[%emt 0:00:22] Dancing on a razor blade. Active counter play!} (28. Qxc6 {gets mated.} Nxh4+ 29. gxh4 Nh5 30. Qd6 Qf3+ 31. Kf1 Bxa1 32. Ne7 Bd4) 28... Nxh4+ {[%emt 0:00:08]} 29. gxh4 {[%emt 0:00:01]} (29. Bxh4 {is a self mate.} Qf3+ 30. Kf1 Bd4) 29... Qf3+ {[%emt 0:00:09]} 30. Kg1 {[%emt 0:00:02]} Qd1+ {[%emt 0:00:48]} 31. Kg2 {[%emt 0:00:02]} Qf3+ {[%emt 0:00:02]} 32. Kg1 {[%emt 0:00:01]} Qd1+ {[%emt 0:00:01]} 33. Kg2 {[%emt 0:00:01]} Qf3+ {[%emt 0:00:02] An interesting draw.  Weighted Error Value: White=0.02 (flawless) /Black=0.00 (flawless)} 1/2-1/2